Cogmind - Beta 14 @@@ ROGUE MODE // 2024.09.16 @ 23:25:35 Player: MadBadger Result: Destroyed by D-53 Grenadier with Mini Grenade Launcher Performance ------------- Evolutions (0) 0 Regions Visited (2) 400 Robots Destroyed (23) 115 Value Destroyed (472) 472 Prototype IDs (1) 20 Alien Tech Used (0) 0 Bonus (0) 0 TOTAL SCORE: 1007 Bonus ------- None Cogmind --------- Core Integrity 0/250 Matter 261/300 Energy 37/100 System Corruption 4% Temperature Cool (0) Movement Treading (240) Ox1 Location -10/Mines Parts ------- > --- POWER (1) -------- (None) > --- PROPULSION (2) --- Improved Treads > --- UTILITY (2) ------ Large Storage Unit Structural Scanner > --- WEAPON (2) ------- Assault Rifle Light Assault Rifle > --- INVENTORY (15) --- Improved Treads Improved Treads Signal Interpreter Improved EM Shotgun Small Laser Light Assault Rifle Datajack Mining Laser Peak State ------------ > --- POWER ------------ Ion Engine > --- PROPULSION ------- Improved Treads Improved Treads > --- UTILITY ---------- Large Storage Unit Structural Scanner > --- WEAPON ----------- Improved EM Shotgun Assault Rifle > --- INVENTORY -------- Light Ion Engine Improved Treads Improved Treads Small Laser Light Assault Rifle Light Assault Rifle Light Assault Rifle Datajack Mining Laser [Rating: 12] Favorites ----------- Power Ion Engine Engine Ion Engine Propulsion Light Treads Treads Light Treads Wheel Wheel Utility Small Storage Unit Device Structural Scanner Storage Small Storage Unit Weapon Assault Rifle Energy Gun Improved EM Shotgun Ballistic Gun Assault Rifle Launcher Grenade Launcher Build | -11 -10 -10 ------- Run | Yrd Mat Min Slots Evolved . | . . . Power . | . . . Propulsion . | . . . Utility . | . . . Weapon . | . . . Parts Attached 26 | 6 15 5 Power 7 | 1 5 1 Engine 7 | 1 5 1 Core . | . . . Reactor . | . . . Propulsion 6 | 2 4 . Treads 4 | 2 2 . Leg . | . . . Wheel 2 | . 2 . Hover . | . . . Flight . | . . . Utility 4 | 1 3 . Device 2 | . 2 . Storage 2 | 1 1 . Processor . | . . . Hackware . | . . . Protection . | . . . Artifact . | . . . Weapon 9 | 2 3 4 Energy Gun 2 | . 1 1 Energy Cannon . | . . . Ballistic Gun 5 | 2 1 2 Ballistic Cannon . | . . . Launcher 2 | . 1 1 Special Weapon . | . . . Impact Weapon . | . . . Slashing Weapon . | . . . Piercing Weapon . | . . . Special Melee Weapon . | . . . Unidentified Prototypes 1 | . 1 . Parts Lost 8 | . 2 6 Power 3 | . 1 2 Propulsion 2 | . 1 1 Utility . | . . . Weapon 3 | . . 3 Highest Loss Streak 5 | . 1 5 To Critical Strikes . | . . . Average Slot Usage (%) 91 | . 92 89 Engine 13 | . 13 8 Treads 26 | . 26 26 Device 8 | . 8 14 Storage 14 | . 14 14 Energy Gun 3 | . 3 10 Ballistic Gun 21 | . 21 1 Launcher 3 | . 2 12 Peak Build Rating 12 | 6 12 12 Average Rating 7 | 5 7 10 On Entrance 6 | . 6 12 Naked Turns . | . . . Heaviest Build 32 | 11 32 32 Greatest Support 46 | 40 46 46 Greatest Overweight (x) 1 | 1 1 . Average Overweight (x) . | . . . Largest Inventory Capacity 15 | 8 15 15 Average Capacity 11 | 6 11 15 Most Carried 13 | 4 13 13 Average Carried 7 | 2 7 11 Final Capacity 15 | 8 15 15 Final Carried 13 | 4 13 8 Class Distribution -------------------- 100% | Mutant Dominant Class ---------------- Mutant | -10/Materials Mutant | -10/Mines Resources | -11 -10 -10 ----------- Run | Yrd Mat Min Matter Collected 702 | 184 458 60 Remotely . | . . . Salvage Created 617 | . 513 104 Parts 39 | . 36 3 Haulers Intercepted . | . . . Recyclers Shooed . | . . . Parts Field Recycled . | . . . Retrieved Matter . | . . . Parts Self-Destructed . | . . . Prevented . | . . . Kills | -11 -10 -10 ------- Run | Yrd Mat Min Combat Hostiles Destroyed 18 | . 16 2 Guns 17 | . 16 1 AOE 1 | . . 1 Classes Destroyed 4 | . 4 . Worker 2 | . 1 1 Watcher 3 | . 3 . Swarmer 9 | . 9 . Grunt 9 | . 7 2 Best Kill Streak 6 | . 6 2 Combat Bots Only 6 | . 6 2 Max Kills in Single Turn 1 | . 1 1 Gunslinging . | . . . Exploded 1 | . . 1 Melee . | . . . Uniques/NPCs Destroyed . | . . . Combat | -11 -10 -10 -------- Run | Yrd Mat Min Hostile Shots Fired 107 | . 81 26 Missed 25 | . 23 2 Damage Taken 1257 | . 546 711 Core 256 | . 116 140 Absorbed by Shields . | . . . Core Remaining (%) 100 | 100 . . Volleys Fired 66 | . 58 8 Largest 2 | . 2 2 Hottest 75 | . 75 75 Shots Fired 129 | . 117 12 Gun 125 | . 116 9 Cannon . | . . . Launcher 4 | . 1 3 Special . | . . . Kinetic 117 | . 115 2 Thermal . | . . . Explosive 4 | . 1 3 Electromagnetic 8 | . 1 7 Robot Hit Streak 16 | . 16 4 Robot Miss Streak 5 | . 5 3 Penetration Max . | . . . Secondary Targets 4 | . 4 . Max Gunslinging Chain 1 | . 1 . Shots Hit Robots 79 | . 72 7 Core Hits 44 | . 32 12 Critical Kills 1 | . 1 . Critical Parts Destroyed . | . . . Critical Strikes 1 | . 1 . Destroy 1 | . 1 . Melee Attacks . | . . . Impact . | . . . Slashing . | . . . Piercing . | . . . Sneak Attacks . | . . . Combat Hostiles . | . . . Follow-up Attacks . | . . . Damage Inflicted 1043 | . 761 282 Guns 840 | . 759 81 Cannons . | . . . Explosions 201 | . . 201 Melee . | . . . Ramming 2 | . 2 . Kinetic 748 | . 739 9 Thermal 81 | . . 81 Explosive 120 | . . 120 Electromagnetic 92 | . 20 72 Impact . | . . . Slashing . | . . . Piercing . | . . . Highest Corruption 4 | . 4 4 Average Corruption 3 | . 3 4 Corruption Purged . | . . . Corruption Blocked . | . . . Effects 41 | . 38 3 Message Errors 7 | . 7 . Matter Fused 6 | . 6 . Heat Flow Errors 5 | . 5 . Energy Discharges 6 | . 5 1 Parts Rejected 2 | . 1 1 Data Loss (minor) 8 | . 7 1 Data Loss (major) 4 | . 4 . Misfires 2 | . 2 . Weapon Failures 1 | . 1 . Overload Shots . | . . . Overflow Damage . | . . . Projectiles . | . . . Explosions . | . . . Melee . | . . . Knockbacks . | . . . Impact . | . . . Kinetic . | . . . Secondary . | . . . Self-Inflicted Damage 22 | . . 22 Shots 1 | . . 1 Rammed 1 | . 1 . Targets Rammed 1 | . 1 . Kicked . | . . . Crushed . | . . . Highest Temperature 264 | . 264 12 Average Temperature 64 | . 72 7 Received Heat Transfer 222 | . 159 63 Effects 1 | . 1 . Energy Bleed 1 | . 1 . Siege Activations . | . . . Robots Corrupted . | . . . Combat Hostiles . | . . . Parts Fried . | . . . Impact Corruptions . | . . . Robots Melted . | . . . Combat Hostiles . | . . . Parts Melted . | . . . Heat Transferred 100 | . . 100 Parts Sabotaged . | . . . Parts Stolen . | . . . Parts Stripped . | . . . Power Chain Reactions 1 | . . 1 Alert | -11 -10 -10 ------- Run | Yrd Mat Min Peak Influence 339 | . 339 66 Initial 15 | . . 15 Average 127 | . 137 54 Maximum Alert Level 1 | . 1 . Low Security (%) 82 | 100 81 100 Level 1 17 | . 18 . Level 2 . | . . . Level 3 . | . . . Level 4 . | . . . Level 5 . | . . . High Security . | . . . Max Security . | . . . Squads Dispatched 2 | . 2 . Investigation 1 | . 1 . Extermination . | . . . Reinforcement 1 | . 1 . Assault . | . . . Garrison . | . . . Intercept . | . . . Searches Triggered . | . . . Construction Impeded . | . . . Haulers Reinforced . | . . . Active Scanning Responses . | . . . Cargo Convoy Interrupts . | . . . Stealth | -11 -10 -10 --------- Run | Yrd Mat Min Distress Signals 3 | . 3 . Communications Jammed . | . . . Distress Signals . | . . . Times Spotted 35 | . 31 4 Peak Tracking Total 6 | . 6 2 Tactical Retreats 1 | . 1 . Traps | -11 -10 -10 ------- Run | Yrd Mat Min Traps Triggered 5 | . 5 . Indirectly . | . . . Trap Hack Attempts . | . . . Triggered . | . . . Disarmed . | . . . Reprogrammed . | . . . Reused . | . . . Traps Extracted . | . . . Installed . | . . . Triggered . | . . . Machines | -11 -10 -10 ---------- Run | Yrd Mat Min Machines Disabled . | . . . Max in Single Turn . | . . . Machines Repaired . | . . . Machines Dismantled . | . . . Machines Sabotaged . | . . . Overloaded Fab Kills . | . . . Hacking | -11 -10 -10 --------- Run | Yrd Mat Min Machines Accessed 4 | . 4 . Terminals 4 | . 4 . Fabricators . | . . . Repair Stations . | . . . Recycling Units . | . . . Scanalyzers . | . . . Garrison Access . | . . . Total Hacks 7 | . 7 . Successful 5 | . 5 . Failed 2 | . 2 . Catastrophic 1 | . 1 . Database Lockouts . | . . . Manual 1 | . 1 . Terminals 7 | . 7 . Fabricators . | . . . Repair Stations . | . . . Recycling Units . | . . . Scanalyzers . | . . . Garrison Access . | . . . Terminal Hacks 5 | . 5 . Alert Level 1 | . 1 . Locate Traps 1 | . 1 . Recall Investigation 1 | . 1 . Zone Layout 2 | . 2 . Fabricator Hacks . | . . . Repair Station Hacks . | . . . Recycling Unit Hacks . | . . . Scanalyzer . | . . . Garrison Access Hacks . | . . . Unauthorized Hacks . | . . . Terminals . | . . . Fabricators . | . . . Repair Stations . | . . . Recycling Units . | . . . Scanalyzers . | . . . Garrison Access . | . . . Data Cores Recovered . | . . . Used . | . . . Hacking Detections 2 | . 2 . Full Trace Events 2 | . 2 . Feedback Events . | . . . Feedback Blocked . | . . . Robot Schematics Acquired . | . . . Robots Built . | . . . Authchips . | . . . Time . | . . . Total Robot Build Rating . | . . . Part Schematics Acquired . | . . . Parts Built . | . . . Authchips . | . . . Time . | . . . Total Part Build Rating . | . . . Parts Repaired . | . . . Time . | . . . Parts Recycled . | . . . Recycled Matter . | . . . Retrieved Matter . | . . . Retrieved Components . | . . . Parts Scanalyzed . | . . . Part Schematics Acquired . | . . . Parts Damaged . | . . . Bothacking | -11 -10 -10 ------------ Run | Yrd Mat Min Used RIF Installer . | . . . Robots Hacked . | . . . Non-combat . | . . . Combat . | . . . Robot Hacks Applied . | . . . Relay Couplers Released . | . . . Fabnet Peak Effective % . | . . . Robots Rewired . | . . . Allies Hacked . | . . . Hacks Repelled . | . . . Allies | -11 -10 -10 -------- Run | Yrd Mat Min Total Allies . | . . . Largest Group . | . . . Highest-Rated Group . | . . . Highest-Rated Ally . | . . . Total Orders . | . . . Ally Attacks . | . . . Total Damage . | . . . Kills . | . . . Allies Corrupted . | . . . Allies Melted . | . . . Intel | -11 -10 -10 ------- Run | Yrd Mat Min Robot Analysis Total . | . . . Derelict Logs Recovered 1 | . . 1 Drone Launches . | . . . Drone Recoveries . | . . . Exploration | -11 -10 -10 ------------- Run | Yrd Mat Min Turns Passed 1891 | 98 1720 73 Spaces Moved 1008 | 58 919 31 Core 8 | 8 . . Treads 957 | 50 876 31 Legs . | . . . Wheels 43 | . 43 . Hover . | . . . Flight . | . . . Fastest Speed 50 | 50 105 160 Average Speed 160 | 148 161 160 Slowest Speed 240 | 160 240 160 Overloaded Moves . | . . . Propulsion Burnouts . | . . . Robots Hopped . | . . . Cave-ins Triggered . | . . . Exploration Rate (%) 37 | 5 97 9 Regions Visited 2 Branch Regions 1 Pre-discovered Areas . | . . . Known Exits Taken . | . . . Unknown Exits Taken 2 | 1 1 . Scrap Searched . | . . . Spaces Dug . | . . . Terrain Destroyed 27 | . 5 22 Melee . | . . . Projectile . | . . . AOE 27 | . 5 22 Terrain Rammed . | . . . Walls Destroyed . | . . . Machines Disabled . | . . . Actions | -11 -10 -10 --------- Run | Yrd Mat Min Total 1161 | 67 1050 44 Wait 36 | . 36 . Move 1006 | 57 918 31 Hop . | . . . Pick Up 15 | 4 11 . Fast Attach 15 | 6 9 . Attach 9 | . 4 5 Detach 5 | . 5 . Swap 2 | . 2 . Drop 6 | . 6 . Fire 66 | . 58 8 Melee . | . . . Ram . | . . . Kick . | . . . Crush 1 | . 1 . Escape Stasis . | . . . Rewire . | . . . Trap . | . . . Miscellaneous . | . . . Route ------- -11/Scrapyard -10/Materials (discovered 4 exits: [*Mat x3] / [*Min]) -10/Mines (discovered 1 exit: [*Mat]) History --------- Turn | Location | Event 9 | -11/Scrapyard | Discovered new exit (range 15) 99 | -11/Scrapyard | Entered Materials 152 | -10/Materials | Discovered new exit (range 6) 309 | -10/Materials | Build established: Mutant 873 | -10/Materials | Discovered new exit (range 15) 1103 | -10/Materials | Discovered new exit (range 11) 1352 | -10/Materials | Discovered new exit (range 16) 1819 | -10/Materials | Entered Mines 1821 | -10/Mines | Core integrity fell below 50% 1859 | -10/Mines | Learned Materials garrison access intel 1875 | -10/Mines | Assembled infested the area 1876 | -10/Mines | Discovered new exit (range 4) 1885 | -10/Mines | Core integrity fell below 20% 1892 | -10/Mines | Destroyed by D-53 Grenadier with Mini Grenade Launcher Last Messages --------------- squad. 01875_ C-30 ARC bursts open, deploying its payload. 01875_ D-53 Grenadier unfolds itself. 01876_ K-01 Serf collects debris. 01876_ EXIT=FOUND 01876_ R-06 Scavenger destroyed. 01880_ Grenade Launcher destroyed. 01881_ K-01 Serf collects debris. 01882_ Lgt. Ion Engine destroyed. 01886_ K-01 Serf destroyed. 01886_ Grenade Launcher destroyed. 01886_ Imp. EM Shotgun destroyed. 01886_ D-53 Grenadier destroyed. 01887_ The unstable cave ceiling collapses. 01887_ U-05 Engineer builds a Wall. 01888_ Imp. Treads destroyed. 01889_ The unstable cave ceiling collapses. 01890_ System corrupted: Energy discharge (-17). 01890_ The unstable cave ceiling collapses. 01891_ U-05 Engineer builds a Wall. Map ----- +----------------------------------------------------+ | ?????????????????????????????????????????????????? | | ?????????????????????????????????????????????????? | | ?????????????????????????????????????????????????? | | ?????????????????????????????????????????????????? | | ?????????????????????????????????????????????????? | | ?????????????????????????????????????????????????? | | ?????????????????????????????????????????????????? | | ?????????????????????????????????????????????????? | | ?????????????????????????????????????????????????? | | ?????????????????????????????????????????????????? | | ?????????????????????????????????????????????????? | | ?????????????????????????????????????????????????? | | ?????????????????????????????????????????????????? | | ??????????????????????#####??????????????????????? | | ??????????????????????#######????????????????????? | | ???????????????????## ## #####??????????????????? | | ???????????????????## ## #####?????????????????? | | ???????????????????## ## ####????????????????? | | ??????????????????### ## ####???????????????? | | ??????????????????### ###???????????????? | | ??????????????????## [ d< ##???????????????? | | ??????????????????## ##???????????????? | | ??????????????????## ##???????????????? | | ??????????????????##t #####?????????????? | | ??????????????????## ######?????????????? | | ??????????????????## @ ## ?????????????? | | ??????????????????## # # ## ## ##???????????? | | ??????????????????## ## ##???????????? | | ????????????????? # ###### ##???????????? | | ?????????????## # u ## ##???????????? | | ?????????????## ######## # ##???????????? | | ?????????????## ######## %# ##???????????? | | ?????????????## ??????## # # ##???????????? | | ??????????????????????## ### ##???????????? | | ??????????????????????## ##???????????? | | ??????????????????????## ######???????????? | | ??????????????????????################???????????? | | ??????????????????????############???????????????? | | ?????????????????????????????????????????????????? | | ?????????????????????????????????????????????????? | | | | | | | | | | | | | | | | | | | | | +----------------------------------------------------+ Best States ------------- Heat Dissipation 25 Energy Generation 10 Energy Capacity 250 Matter Stores 300 Matter Capacity 300 Sight Range 16 Terrain Scan Density 10 ECM Strength 1 Evasion (%) 40 Recoil Reduction 2 Item Schematics ----------------- None Robot Schematics ------------------ None Fabricated ------------ Nothing Alien Tech Used ----------------- None Achievements -------------- None Challenges ------------ None Game ------ Seed InsulationColdPlatform Manual? 0 Play Time 00:19:51 Cumulative 15.0 hours Start 2024.09.16 @ 23:05:50 End 2024.09.16 @ 23:25:35 Sessions 1 Manual Loads 0 Difficulty Rogue Special Mode None Game No. 26 Rogue 26 Adventurer 0 Explorer 0 Win Type - Total 0 Types 0/0/0/0/0/0/0/0/0 Lore% 6 Gallery% 11 Achievement% 13 Wizard Run 0 Options --------- Layout 0 ASCII 0 Keyboard 1 Movement Numpad Keybinds 0 Fullscreen 1 Font 24/Smallcaps Map View 76x50 Zoom Use 0% Tactical HUD 1 Map Filters NONE Filters NONE Steam 1 RUN: 3c0ac156-b9bf-4133-935d-0b5ae1b1f2de